{"text_format":"1","workbook":"xlsx","n_sheets":2,"sheets":["DATOS","Simulador"],"not_rendered":{"charts":0,"images":0,"macros":1,"external_links":0,"defined_names":10,"comments":0,"pivot_tables":0},"unopened":[],"bounds":{"document_bytes":16777216,"sheet_cells":100000,"rows_first":2000,"rows_last":500,"rows_between":2000,"halvings":0,"cell_chars":16384,"cell_head_chars":4096},"cells_cut":0,"cells_raw":0,"read":"whole","date_system":"1900"}

{"sheet":"DATOS","index":0,"n_rows":85,"n_cols":8,"rows_kept":85,"cut":false,"hidden":true,"merged":[]}
[null,"Parámetros Iniciales"]
[]
[null,"ETAPA",null,null,"PREGRADO_INGRESANTE","PREGRADO_NO_INGRESANTE","POSGRADO_INGRESANTE","POSGRADO_NO_INGRESANTE"]
[null,"PREGRADO",null,null,"Estudios Generales de Letras","-","-","-"]
[null,"POSGRADO",null,null,"Estudios Generales de Ciencias"]
[null,null,null,null,"Educación "]
[null,null,null,null,"Arte y Diseño"]
[null,null,null,null,"Quimica, arquitectura y urbanismo"]
[null,null,null,null,"Artes Escenicas"]
[]
[null,"MODALIDAD"]
[null,"CUOTA DOBLE",5]
[null,"CUOTAS IGUALES",4]
[]
[null," INGRESANTE"]
[null,"SI"]
[null,"NO"]
[]
[null,"SEMESTRE"]
[null,"2022-2"]
[]
[null,"Escalas de los alumnos ciclo 2022-2"]
[]
[]
["ID","Etapa del alumno","Escala","Valor del crédito","D. de Matrícula (*)"]
[1,"Pregrado","G1",270.10000000000002,110.9]
[{"$f":"A26+1","v":2},"Pregrado","G2",346.4,139.80000000000001]
[{"$f":"A27+1","v":3},"Pregrado","G3",434.6,173.4]
[4,"Pregrado","G4",532.70000000000005,210.6]
[5,"Pregrado","G5",638.20000000000005,250.7]
[6,"Pregrado","G6",746.7,291.89999999999998]
[7,"Pregrado","G7",852.9,332.3]
[8,"Pregrado","G8",950.5,369.4]
[9,"Pregrado","G9",1032.4000000000001,400.6]
[10,"Pregrado",1,304.8,57]
[11,"Pregrado",2,399.8,72.5]
[12,"Pregrado",3,532.70000000000005,93.6]
[13,"Pregrado",4,708.7,121.3]
[14,"Pregrado",5,953.7,161.4]
[{"$f":"A39+1","v":15},"Posgrado","A",997.4,168.2]
[{"$f":"A40+1","v":16},"Posgrado","B",751.1,128]
[{"$f":"A41+1","v":17},"Posgrado","C",574.29999999999995,100.4]
[]
[null,"Créditos 1era cuota académica"]
[]
[null,"Etapa del alumno","Etapa","Especialidad","Valor del crédito"]
[null,"Pregrado","Ingresante","Educación ",3.6]
[null,"Pregrado","Ingresante","Estudios Generales de Letras",3.8]
[null,"Pregrado","Ingresante","Estudios Generales de Ciencias",4]
[null,"Pregrado","Ingresante","Arte y Diseño",4.0999999999999996]
[null,"Pregrado","Ingresante","Quimica, arquitectura y urbanismo",4.4000000000000004]
[null,"Pregrado","Ingresante","Artes Escenicas",4.8]
[null,"Pregrado","Segundo semestre ",null,3.6]
[null,"Posgrado","Segundo semestre ",null,2]
[]
[]
[null,"Encargos de cobranza"]
[]
[null,"Encargo","Cobro en","Importe S/"]
[null,"Seguro contra accidentes","Cuota N° 2 y 3 (50% en cada cuota)",50]
[null,"Seguro de renta educacional","Cuota N° 2 y 3 (50% en cada cuota)",159]
[null,"Seguro oncológico nacional","Cuota N° 2 y 3 (50% en cada cuota)",60]
[null,"Seguro oncológico internacional","Cuota N° 2 y 3 (50% en cada cuota)",90]
[]
[null,"Fecha de vencimiento cuota académicas ciclo 2022-2"]
[]
[null,"Nro. De cuota","Fecha de vencimiento"]
[{"$f":"CONCATENATE(2022,-2,B68)","v":"2022-2Cuota N° 1"},"Cuota N° 1","2022-08-05"]
[{"$f":"CONCATENATE(2022,-2,B69)","v":"2022-2Cuota N° 2"},"Cuota N° 2","2022-09-15"]
["2022-2Cuota N° 3","Cuota N° 3","2022-10-14"]
["2022-2Cuota N° 4","Cuota N° 4","2022-11-15"]
["2022-2Cuota N° 5","Cuota N° 5","2022-12-15"]
[{"$f":"CONCATENATE(2022,-1,B73)","v":"2022-1Cuota N° 1"},"Cuota N° 1","2022-03-11"]
[{"$f":"CONCATENATE(2022,-1,B74)","v":"2022-1Cuota N° 2"},"Cuota N° 2","2022-04-18"]
["2022-1Cuota N° 3","Cuota N° 3","2022-05-16"]
["2022-1Cuota N° 4","Cuota N° 4","2022-06-15"]
["2022-1Cuota N° 5","Cuota N° 5","2022-07-15"]
[]
[]
[]
[null,"Modalidad de cuota"]
[]
[null,"Modalidad","Forma de calculo"]
[null,"Cuotas iguales","A la cantidad de créditos matriculados se le descuenta los creditos pagados en la primera cuota académica, al resultado se le divide entre 4, de esta forma se obtiene el resultado del creditaje que se cobrará desde la 2da a la 5ta cuota"]
[null,"Cuota doble","A la cantidad de créditos matriculados se le descuenta los creditos pagados en la primera cuota académica, al resultado se le divide entre 5, de esta forma se obtiene el resultado del creditaje que se cobrará desde la 2da a la 4ta cuota. La 5ta cuota académica es el doble del importe de las anteriores "]

{"sheet":"Simulador","index":1,"n_rows":62,"n_cols":11,"rows_kept":62,"cut":false,"hidden":false,"merged":[[2,1,2,7],[16,1,16,7],[31,1,31,7],[5,1,8,7],[62,1,62,7],[61,1,61,7],[58,1,58,7],[59,1,59,7],[56,1,56,7],[18,1,18,7],[57,1,57,7],[54,1,54,7],[42,1,42,7]]}
[]
[]
[null,"SIMULADOR DE CUOTAS ACADÉMICAS"]
[]
[null,"Estimado Alumno:"]
[null,"Mediante este aplicativo podrá simular el importe de sus cuotas académicas, de acuerdo a la cantidad de créditos en los que desea matricularse, la escala de pensiones asignada y la modalidad de pago seleccionada."]
[]
[]
[]
[]
[null,"Ingrese los siguientes datos:"]
[]
[null,"Ciclo","2022-2",null,null,"Etapa","PREGRADO"]
[]
[null,"Ingresante",2,null,null,"Especialidad","-",null,null,null,"NO"]
[]
[null,"SEGUROS PUCP"]
[]
["(1)","En esta sección podrá simular el importe a pagar si opta por un seguro durante su ciclo académico. Marque con un check el seguro que desea se considere en la simulación: "]
[]
[]
[null,"Seguro contra accidentes",null,null,false,"Importe:",0]
[]
[null,"Seguro oncológico internacional",null,null,false,"Importe:",0]
[]
[null,"Seguro oncológico nacional",null,null,false,"Importe:",0]
[]
["(2)","Seguro de renta educacional",null,null,false,"Importe:",0]
[]
[null,null,null,null,null,"Total",{"$f":"SUM(G22,G24,G26,G28)","v":0},"(3)"]
[]
[null,"CREDITOS MATRICULADOS Y ESCALA DE PENSIONES"]
[]
[]
["(4)","Escala de pensiones:",null,null,null,"Créditos:",null,null,null,{"$f":"IF(C35=\"\",\"\",VLOOKUP(C35,Tabla8[[Escala]:[D. de Matrícula (*)]],3,FALSE))","v":""}]
[]
[]
["(5)"," Modalidad de pago:","CUOTAS IGUALES",null,null,"Valor del crédito",{"$f":"IF(C35=\"\",\"\",VLOOKUP(C35,Tabla8[[Escala]:[D. de Matrícula (*)]],2,FALSE))","v":""}]
[]
[]
[]
[]
[null,"(6)  CUOTAS ACADÉMICAS"]
[]
[null,"Cuota Académica","Fecha de vencimiento","Créditos","Derechos Académicos","Derecho de Matrícula","Seguros","Importe total S/"]
[null,"Cuota N° 1","2022-08-05"]
[null,"Cuota N° 2","2022-09-15"]
[null,"Cuota N° 3","2022-10-14"]
[null,"Cuota N° 4","2022-11-15"]
[null,"Cuota N° 5","2022-12-15"]
[null,null,null,null,null,null,"TOTAL S/"]
[]
[]
[null,"IMPORTANTE:"]
[null,"Si usted se matricula en menos créditos a los pagados en su Cuota N° 1, se le realizará una devolución por el pago en exceso en las fechas publicadas por la Universidad."]
[]
[null,"(1) Es importante precisar que sólo puede afiliarse a un seguro oncológico. Para mayor información dirígase al siguiente enlace: https://www.pucp.edu.pe/servicio/seguros-para-estudiantes/\n   o comunicarse al siguiente correo segurospucp@pucp.edu.pe. "]
[null,"(2) El seguro de renta educacional solo aplica a alumnos de pregrado\n"]
[null,"(3) El costo del seguro por alumno y por semestre académico será cargado en dos partes: 50% en la segunda cuota y el 50% en la tercera cuota académica.\n"]
[null,"(4) No incluye las escalas de ciclos especiales (Programa de Segunda Especialidad de Psicología, Maestría en Gerencia Social, Maestría en Política y Gestión Universitaria, Doctorado en Derecho, Doctorados y Gastronomía)"]
[null,"(5)  Para mayor información sobre las Modalidades de Pago, diríjase al siguiente enlace: https://estudiante.pucp.edu.pe/informacion-economica/modalidades-de-pago/semestre-2022-2/ "]
[null,"(6) Por el semestre 2022-2, la Universidad ha establecido medidas económicas de apoyo a los estudiantes como la reducción del número mínimo de créditos permitidos por cuota académica. Pasa de ser de dos (2) créditos a uno (1), a partir de la segunda cuota y la suspensión del cobro de intereses moratorios por atraso en los pagos de las cuotas académicas. Es decir, los estudiantes pagarán solo el monto adeudado de derechos académicos con interés cero. Para mayor información diríjase al siguiente enlace: https://puntoedu.pucp.edu.pe/institucional/matricula-2022-2-estas-son-las-medidas-economicas-de-apoyo-a-estudiantes/"]